bitfinex-derivatives/quotes_SOLF0:USTF0_20250626
["timestamp","ask_amount","ask_price","bid_price","bid_amount"]
[1750916304166,37.94,144.3,144.19,4.6886]
[1750916304669,5.7598514,144.28,144.19,10.4484514]
[1750916304867,5.7598514,144.3,144.21,5.7598514]
[1750916305065,37.94,144.29,144.21,5.7598514]
[1750916305458,37.94,144.29,144.22,43.6031612]
[1750916306060,108.37929116,144.34,144.25,5.7598514]
[1750916306061,37.96,144.34,144.25,5.7598514]
[1750916306262,37.96,144.34,144.26,42.8359]
[1750916307275,6.9258,144.33,144.27,6.9278]
[1750916307970,37.96,144.34,144.28,6.9278]
[1750916307971,44.885,144.34,144.28,6.9278]
[1750916308275,37.96,144.34,144.27,5.7598514]
[1750916308569,37.96,144.34,144.3,6.9264]
[1750916308761,50.6433514,144.37,144.27,8.0731514]
[1750916309160,50.6433514,144.37,144.3,6.9268]
[1750916309357,6.9242,144.36,144.3,6.9268]
[1750916310475,6.9245,144.35,144.29,6.9272]
[1750916310773,6.9245,144.35,144.27,8.0731514]
[1750916311260,6.9245,144.35,144.29,6.9272]
[1750916311967,6.9245,144.35,144.3,6.9266]
[1750916312664,6.9245,144.35,144.29,6.9272]
[1750916312875,6.9245,144.35,144.27,8.0731514]
[1750916313173,37.96,144.37,144.27,2.3133]
[1750916313372,5.7598514,144.34,144.27,2.3133]
[1750916314280,6.9257,144.33,144.27,9.2412]
[1750916314675,6.9257,144.33,144.27,2.3133]
[1750916314867,12.6836718,144.35,144.29,6.9273]
[1750916315071,5.7588718,144.35,144.29,6.9273]
[1750916315369,12.6854718,144.31,144.22,5.6631612]
[1750916315574,12.6854718,144.31,144.23,7.0406]
[1750916315769,5.7588718,144.31,144.23,7.0406]
[1750916315970,12.6855718,144.31,144.23,7.0406]
[1750916316176,37.98,144.32,144.24,5.7588718]
[1750916316875,37.98,144.32,144.25,37.98]
[1750916317074,37.98,144.32,144.28,6.9274]
[1750916318076,37.98,144.32,144.27,6.9282]
[1750916318272,43.7388718,144.32,144.25,37.98]
[1750916318679,50.6650718,144.32,144.26,6.9284]
[1750916318976,5.76211325,144.31,144.25,37.98]
[1750916319480,6.9272,144.3,144.25,37.98]
[1750916320172,5.76211325,144.31,144.25,37.98]
[1750916320384,5.76211325,144.31,144.25,44.9091]
[1750916320675,5.76211325,144.31,144.23,7.0406]
[1750916320876,12.68891325,144.31,144.23,7.0406]
[1750916321176,12.68891325,144.31,144.26,6.9287]
[1750916321365,5.76211325,144.31,144.26,6.9287]
[1750916322072,6.9272,144.3,144.24,6.9294]
[1750916322472,5.76211325,144.29,144.23,51.9507]
[1750916322774,5.76211325,144.27,144.22,5.6631612]
[1750916322979,43.74211325,144.27,144.22,5.6631612]
[1750916323278,37.98,144.27,144.22,5.6631612]
[1750916323477,44.9087,144.27,144.22,5.6631612]
[1750916323674,37.98,144.27,144.23,6.9302]
[1750916324081,43.74211325,144.27,144.22,5.6631612]
[1750916324485,50.67051325,144.27,144.22,5.6631612]
[1750916325889,6.9288,144.26,144.22,5.6631612]
[1750916326582,37.98,144.27,144.22,5.6631612]
[1750916326583,6.9293,144.25,144.22,5.6631612]
[1750916326787,5.7648969,144.26,144.22,5.6631612]
[1750916327281,6.9301,144.24,144.22,5.6631612]
[1750916327484,5.76701,144.26,144.22,5.6631612]
[1750916327684,37.98,144.27,144.22,5.6631612]
[1750916327881,44.9084,144.27,144.22,12.5934612]
[1750916328076,37.98,144.27,144.22,5.6631612]
[1750916328280,38.0,144.3,144.22,5.6631612]
[1750916328779,5.76465769,144.29,144.22,5.6631612]
[1750916328981,38.0,144.3,144.22,5.6631612]
[1750916328982,5.76465769,144.25,144.22,5.6631612]
[1750916329182,43.76465769,144.25,144.22,5.6631612]
[1750916329384,38.0,144.25,144.22,5.6631612]
[1750916330387,43.76465769,144.28,144.22,5.6631612]
[1750916331088,38.0,144.28,144.22,5.6631612]
[1750916331289,38.0,144.31,144.23,5.76113476]
[1750916331493,111.91182456,144.34,144.25,5.76113476]
[1750916331789,111.91182456,144.34,144.27,5.76113476]
[1750916332090,117.67295932,144.34,144.26,38.0]
[1750916332387,124.59825932,144.34,144.29,6.9273]
[1750916332583,117.67295932,144.34,144.26,38.0]
[1750916332778,5.76113476,144.32,144.24,2.2992]
[1750916332984,6.9268,144.31,144.25,6.9289]
[1750916333480,5.76113476,144.3,144.24,2.2992]
[1750916334184,6.9281,144.28,144.24,2.2992]
[1750916334985,5.76841435,144.25,144.22,0.42850962]
[1750916335191,5.76841435,144.23,144.22,0.42850962]
[1750916335489,50.79861435,144.23,144.22,0.42850962]
[1750916337284,50.79848491,144.23,144.22,0.42850962]
[1750916337489,45.0302,144.23,144.22,0.42850962]
[1750916337885,50.79848491,144.23,144.22,0.42850962]
[1750916338991,43.86828491,144.23,144.12,38.1]
[1750916339290,5.76828491,144.2,144.12,38.1]
[1750916339486,12.70028491,144.2,144.12,38.1]
[1750916339686,5.76828491,144.2,144.12,38.1]
[1750916340089,12.69998491,144.2,144.15,6.934]
[1750916340287,38.1,144.23,144.12,38.1]
[1750916340486,5.76828491,144.21,144.12,43.86828491]
[1750916340687,5.76828491,144.21,144.12,38.1]
[1750916340887,6.74993431,144.26,144.13,5.76828491]
[1750916341082,43.88828491,144.25,144.15,5.76828491]
[1750916341291,5.76828491,144.21,144.12,38.1]
[1750916341494,43.88828491,144.21,144.12,38.1]
[1750916341887,6.932,144.2,144.15,6.9337]
[1750916342693,50.81958491,144.21,144.16,6.9332]
[1750916342892,45.0513,144.21,144.12,38.1]
[1750916343080,38.12,144.21,144.14,5.76913141]
[1750916343285,38.12,144.21,144.12,43.86913141]
[1750916344295,45.0513,144.21,144.16,6.9331]
[1750916344792,5.76913141,144.2,144.12,38.1]
[1750916345089,5.7705371,144.2,144.12,38.1]
[1750916345286,38.12,144.21,144.12,38.1]
[1750916345688,45.0512,144.21,144.16,6.9332]
[1750916346086,38.12,144.21,144.13,5.76875593]
[1750916346288,45.0512,144.21,144.17,6.933]
[1750916346493,43.88875593,144.21,144.12,38.1]
[1750916346992,38.12,144.21,144.12,38.1]
[1750916347695,38.12,144.21,144.12,100.1]
[1750916347999,38.12,144.21,144.13,5.76875593]
[1750916348498,38.12,144.21,144.18,6.9322]
[1750916349392,38.12,144.21,144.19,6.932]
[1750916350198,38.12,144.21,144.18,6.9324]
[1750916351090,38.12,144.21,144.17,6.9329]
[1750916351285,6.9317,144.2,144.12,43.86875593]
[1750916351602,38.12,144.21,144.12,43.86875593]
[1750916352197,38.12,144.21,144.12,38.1]
[1750916352599,6.9322,144.19,144.12,38.1]
[1750916353200,6.9322,144.19,144.14,6.9345]
[1750916353397,6.9317,144.2,144.12,38.1]
[1750916353796,43.88875593,144.21,144.15,6.9337]
[1750916353998,6.9322,144.19,144.12,38.1]
[1750916355091,6.9318,144.2,144.15,6.9337]
[1750916355405,43.88875593,144.21,144.15,6.9337]
[1750916356102,6.9318,144.2,144.15,6.9337]
[1750916357008,38.12,144.21,144.12,43.86875593]
[1750916357210,38.12,144.21,144.14,5.76875593]
[1750916357807,45.0513,144.21,144.16,6.9335]
[1750916358003,45.0513,144.21,144.12,38.1]
[1750916358004,38.12,144.21,144.12,38.1]
[1750916358303,5.76875593,144.2,144.11,7.1588]
[1750916359004,6.9326,144.18,144.11,7.1588]
[1750916359510,12.70075593,144.2,144.11,7.1588]
[1750916359709,5.76875593,144.2,144.11,7.1588]
[1750916360106,6.9326,144.18,144.13,6.9349]
[1750916360909,6.9326,144.18,144.14,6.9345]
[1750916361105,5.76875593,144.2,144.11,7.1588]
[1750916361310,38.12,144.21,144.11,7.1588]
[1750916361504,6.932,144.2,144.15,6.9337]
[1750916362511,38.12,144.21,144.16,6.9335]
[1750916363411,45.0515,144.21,144.16,6.9335]
[1750916363811,40.1935,144.27,144.17,37.82]
[1750916364011,37.82,144.27,144.18,5.7647493]
[1750916364213,5.7647493,144.26,144.17,44.9947]
[1750916364510,12.6936493,144.26,144.17,44.9947]
[1750916364712,12.6936493,144.26,144.22,6.9305]
[1750916364910,5.7647493,144.26,144.17,44.9947]
[1750916365206,6.9294,144.25,144.17,44.9947]
[1750916366616,5.7647493,144.26,144.17,44.9947]
[1750916367111,5.7647493,144.26,144.2,6.9312]
[1750916367511,6.9293,144.25,144.2,6.9312]
[1750916367914,6.9293,144.25,144.21,6.9311]
[1750916368107,6.9293,144.25,144.17,44.9947]
[1750916368814,12.6936493,144.26,144.21,6.9308]
[1750916369413,6.9289,144.26,144.17,44.9947]
[1750916369609,50.5131493,144.27,144.18,5.7647493]
[1750916369910,43.5847493,144.27,144.18,5.7647493]
[1750916370113,6.9289,144.26,144.22,6.9306]
[1750916370516,43.5847493,144.27,144.22,6.9306]
[1750916371013,50.5134493,144.27,144.22,6.9306]
[1750916371513,6.929,144.26,144.22,6.9306]
[1750916371818,43.5847493,144.27,144.23,6.9302]
[1750916374708,43.5847493,144.27,144.18,5.7647493]
[1750916374709,37.82,144.27,144.18,5.7647493]
[1750916374914,636.34,144.3,144.2,18.40140541]
[1750916375106,636.34,144.3,144.24,6.9294]
[1750916375309,636.34,144.3,144.21,37.8]
[1750916375514,643.267,144.3,144.21,37.8]
[1750916375813,5.7647493,144.29,144.25,6.9289]
[1750916376623,5.7647493,144.29,144.26,6.9287]
[1750916377119,12.6921493,144.29,144.25,6.9291]
[1750916377511,5.7647493,144.29,144.25,6.9291]
[1750916380222,12.6921493,144.29,144.25,6.9291]
[1750916380425,12.6921493,144.29,144.24,6.9295]
[1750916380922,6.9278,144.28,144.24,6.9295]
[1750916382426,12.6922493,144.29,144.21,37.8]
[1750916382822,5.7647493,144.29,144.21,37.8]
[1750916383020,5.7647493,144.29,144.24,6.9294]
[1750916383220,5.7647493,144.29,144.21,37.8]
[1750916383828,12.6922493,144.29,144.21,37.8]
[1750916384327,10.38498324,144.29,144.22,3.45748324]
[1750916384518,10.38498324,144.29,144.25,6.9289]
[1750916385928,3.45748324,144.29,144.25,6.9289]
[1750916386830,10.38498324,144.29,144.25,6.9289]
[1750916387328,3.45748324,144.29,144.26,6.9287]
[1750916389230,44.727,144.3,144.26,6.9287]
[1750916389521,3.45748324,144.28,144.21,37.8]
[1750916389721,3.45748324,144.25,144.21,37.8]
[1750916389927,3.45748324,144.25,144.22,6.9304]
[1750916391420,3.45748324,144.25,144.23,6.9302]
[1750916395448,3.45748324,144.27,144.24,6.9294]
[1750916395734,37.8,144.3,144.22,3.45748324]
[1750916396036,44.727,144.3,144.23,41.7241]
[1750916396430,44.727,144.3,144.26,6.9284]
[1750916397635,37.8,144.3,144.27,6.9283]
[1750916398137,44.7269,144.3,144.26,6.9286]
[1750916400432,10.38478324,144.29,144.25,6.9291]
[1750916400632,37.8,144.3,144.23,41.7241]
[1750916400633,3.45748324,144.27,144.23,37.02]
[1750916400834,3.45748324,144.27,144.2,37.02]
[1750916401736,3.45748324,144.29,144.21,3.45748324]
[1750916402438,10.38478324,144.29,144.25,6.9292]
[1750916405039,3.45748324,144.29,144.26,6.9286]
[1750916406435,37.8,144.3,144.27,6.9281]
[1750916406642,37.8,144.3,144.24,37.02]
[1750916407442,37.8,144.3,144.26,6.9284]
[1750916407839,37.8,144.3,144.27,6.9283]
[1750916409543,37.8,144.3,144.28,6.9277]
[1750916409836,10.38348324,144.32,144.25,3.45748324]
[1750916410037,10.38348324,144.32,144.27,6.9279]
[1750916410239,2.49438491,144.31,144.27,6.9279]
[1750916410542,10.38348324,144.32,144.25,3.45748324]
[1750916411143,10.38348324,144.32,144.27,6.9282]
[1750916411344,39.4544,144.33,144.25,3.45748324]
[1750916411538,40.47748324,144.33,144.28,6.9274]
[1750916411939,47.40298324,144.33,144.28,6.9274]
[1750916412538,47.40298324,144.33,144.29,6.9271]
[1750916415949,40.47748324,144.33,144.3,6.9268]
[1750916416338,37.02,144.33,144.27,3.45748324]
[1750916416540,111.91182456,144.34,144.28,39.3209]
[1750916416839,40.47748324,144.36,144.29,3.45748324]
[1750916417044,40.47748324,144.36,144.29,5.93398324]
[1750916417247,40.47748324,144.36,144.32,6.9255]
[1750916418345,3.45748324,144.34,144.25,40.47748324]
[1750916418649,3.45748324,144.33,144.25,40.47748324]
[1750916418844,3.45748324,144.33,144.25,53.11413935]
[1750916419044,10.38298324,144.33,144.29,6.927]
[1750916419357,3.45748324,144.33,144.26,12.63665611]
[1750916419544,39.3036,144.36,144.25,49.65665611]
[1750916419545,3.45748324,144.31,144.25,49.65665611]
[1750916419850,3.45748324,144.31,144.26,6.9284]
[1750916420739,6.9269,144.3,144.27,6.9282]
[1750916420945,3.45748324,144.31,144.27,6.9282]
[1750916421153,10.38398324,144.31,144.27,6.9282]
[1750916422647,3.45748324,144.31,144.28,6.9278]
[1750916424450,37.02,144.32,144.25,40.47748324]
[1750916424658,3.45748324,144.34,144.27,3.45748324]
[1750916425359,3.45748324,144.34,144.3,6.9265]
[1750916426255,3.45748324,144.34,144.31,6.9263]
[1750916426760,10.38248324,144.34,144.3,6.9267]
[1750916427264,3.45748324,144.34,144.3,6.9267]
[1750916428161,3.45748324,144.34,144.31,6.9262]
[1750916429251,43.4045,144.35,144.31,6.9262]
[1750916429952,36.48,144.35,144.31,6.9262]
[1750916430454,36.48,144.35,144.29,36.48]
[1750916430455,36.48,144.35,144.3,6.9267]
[1750916430657,3.45748324,144.34,144.26,51.35925611]
[1750916430860,3.45748324,144.34,144.26,38.7226]
[1750916431159,3.45748324,144.32,144.26,38.7226]
[1750916432360,3.45748324,144.32,144.28,6.9275]
[1750916433467,10.38358324,144.32,144.28,6.9275]
[1750916434368,6.9261,144.32,144.26,38.7226]
[1750916434580,10.38358324,144.32,144.26,38.7226]
[1750916435371,10.38358324,144.32,144.28,6.9275]
[1750916436078,10.3826503,144.32,144.28,6.9275]
[1750916436872,10.3826503,144.32,144.29,6.9273]
[1750916439075,12.89240129,144.34,144.26,38.7226]
[1750916439272,10.3815503,144.34,144.26,38.7226]
[1750916439782,3.4565503,144.34,144.27,3.4565503]
[1750916440280,3.4565503,144.34,144.3,6.9265]
[1750916440871,10.3814503,144.34,144.3,6.9265]
[1750916442479,3.4565503,144.34,144.31,6.9262]
[1750916442778,3.4565503,144.34,144.27,16.09320641]
[1750916442978,3.4565503,144.34,144.3,6.9265]
[1750916444280,3.4565503,144.34,144.31,6.9263]
[1750916445882,3.4565503,144.34,144.32,6.9258]
[1750916446082,3.4565503,144.34,144.27,3.4565503]
[1750916446283,3.4565503,144.34,144.27,16.09320641]
[1750916446488,3.4565503,144.34,144.31,6.9263]
[1750916446890,39.9365503,144.35,144.32,6.9258]
[1750916448483,8.25991683,144.37,144.28,16.09114847]
[1750916448680,3.45449236,144.35,144.3,36.48]
[1750916448882,3.45449236,144.35,144.29,2.3177]
[1750916449286,10.37919236,144.35,144.3,6.9265]
[1750916449479,10.37919236,144.35,144.29,2.3177]
[1750916449785,3.45449236,144.35,144.31,6.926]
[1750916450482,3.45449236,144.35,144.32,6.9258]
[1750916450681,4.80498512,144.37,144.29,5.77219236]
[1750916450881,2.51186289,144.36,144.3,2.2932]
[1750916451190,3.45449236,144.37,144.34,6.9246]
[1750916452289,36.48,144.38,144.35,6.9244]
[1750916453590,36.48,144.38,144.31,2.4294]
[1750916453781,3.45449236,144.37,144.31,2.4294]
[1750916454289,3.45449236,144.37,144.33,6.9251]
[1750916455591,10.37799236,144.37,144.33,6.9251]
[1750916456295,3.45449236,144.37,144.33,6.9251]
[1750916456589,3.45449236,144.37,144.34,6.9249]
[1750916458594,43.4031,144.38,144.34,6.9249]
[1750916460197,36.48,144.38,144.35,6.9243]
[1750916460689,36.48,144.38,144.32,39.41449236]
[1750916461390,36.48,144.38,144.34,6.9246]
[1750916461995,36.48,144.38,144.35,6.9243]
[1750916466001,10.37699236,144.39,144.35,6.9243]
[1750916468302,3.45449236,144.39,144.36,6.9238]
[1750916469692,3.45449236,144.39,144.32,35.96]
[1750916469895,3.45449236,144.37,144.32,35.96]
[1750916470497,3.45449236,144.35,144.3,2.2932]
[1750916470802,3.45449236,144.35,144.29,38.2577]
[1750916471206,6.9253,144.34,144.3,6.9265]
[1750916472999,6.9255,144.33,144.3,6.9265]
[1750916473189,6.9255,144.33,144.29,42.8673]
[1750916473502,3.45449236,144.33,144.29,35.94]
[1750916473694,3.45449236,144.33,144.26,44.20889236]
[1750916473695,6.9259,144.32,144.26,44.20889236]
[1750916474101,3.45449236,144.33,144.26,44.20889236]
[1750916474302,3.45449236,144.35,144.27,3.45449236]
[1750916475703,6.925,144.34,144.3,6.9267]
[1750916477094,10.37909236,144.35,144.31,6.9262]
[1750916477297,10.37909236,144.35,144.28,2.249]
[1750916478604,3.45449236,144.35,144.29,3.45449236]
[1750916479604,6.9241,144.36,144.29,3.45449236]
[1750916480297,6.9241,144.36,144.31,6.9263]
[1750916483092,6.9241,144.36,144.32,6.9258]
[1750916483504,39.39449236,144.37,144.31,3.45449236]
[1750916483505,45.36858421,144.37,144.31,3.45449236]
[1750916483703,35.94,144.37,144.31,3.45449236]
[1750916483911,35.94,144.37,144.33,6.925]
[1750916484603,35.94,144.37,144.34,6.9249]
[1750916485406,35.94,144.37,144.33,6.9252]
[1750916485407,42.8636,144.37,144.33,6.9252]
[1750916488704,42.8636,144.37,144.31,5.88389236]
[1750916489006,6.924,144.36,144.3,39.41449236]
[1750916489509,6.9245,144.35,144.31,6.9262]
[1750916489703,3.45449236,144.36,144.3,35.96]
[1750916490005,3.45449236,144.36,144.28,2.249]
[1750916490209,6.9253,144.34,144.28,2.249]
[1750916491012,6.9253,144.34,144.3,6.9268]
[1750916494908,6.9246,144.35,144.3,6.9268]
[1750916495414,3.45449236,144.36,144.3,6.9268]
[1750916496008,6.9245,144.35,144.3,6.9268]
[1750916496212,10.37899236,144.35,144.3,6.9268]
[1750916497115,10.37899236,144.35,144.31,6.9262]
[1750916499710,3.45449236,144.35,144.32,6.9259]
[1750916499915,39.39449236,144.37,144.3,3.45449236]
[1750916500620,39.39449236,144.37,144.33,6.9252]
[1750916500819,39.39449236,144.37,144.3,3.45449236]
[1750916501622,6.924,144.36,144.32,6.9257]
[1750916503414,46.31809236,144.37,144.33,6.9254]
[1750916504022,39.39449236,144.37,144.34,6.9248]
[1750916504413,39.39449236,144.37,144.31,35.68]
[1750916505116,39.39449236,144.37,144.33,6.925]
[1750916506309,39.39449236,144.37,144.34,6.9248]
[1750916509312,35.94,144.37,144.34,6.9248]
[1750916513026,35.94,144.37,144.33,6.9251]
[1750916513827,42.8638,144.37,144.33,6.9251]
[1750916517528,3.45449236,144.36,144.31,35.68]
[1750916518031,10.37849236,144.36,144.31,42.6063]
[1750916518424,6.9247,144.35,144.31,35.68]
[1750916518633,6.9247,144.35,144.29,12.63665611]
[1750916519129,6.9249,144.34,144.3,6.9265]
[1750916519430,3.45449236,144.36,144.3,6.9265]
[1750916519630,6.9252,144.34,144.29,19.56385611]
[1750916519933,2.50880385,144.33,144.27,2.4057]
[1750916520124,3.45449236,144.34,144.27,2.4057]
[1750916520425,3.45449236,144.34,144.25,35.64]
[1750916520426,3.45449236,144.32,144.25,48.27665611]
[1750916520819,6.9267,144.31,144.26,6.9284]
[1750916521628,6.9267,144.31,144.27,6.9282]
[1750916524820,35.64,144.33,144.27,3.45449236]
[1750916526433,35.64,144.33,144.29,6.927]
[1750916527230,42.5654,144.33,144.28,6.9277]
[1750916527431,35.64,144.33,144.28,6.9277]
[1750916528628,6.9259,144.32,144.28,6.9277]
[1750916529230,6.9259,144.32,144.27,6.9281]
[1750916529631,6.9264,144.31,144.27,6.9281]
[1750916533032,35.64,144.33,144.24,2.2392]
[1750916533033,3.45449236,144.3,144.24,2.2392]
[1750916533335,3.45449236,144.29,144.22,4.7634]
[1750916533534,3.45449236,144.29,144.22,7.0998]
[1750916533737,10.38179236,144.29,144.22,7.0998]
[1750916534535,10.38179236,144.29,144.25,6.9291]
[1750916534831,3.45449236,144.29,144.25,6.9291]
[1750916535034,3.45449236,144.28,144.15,598.4]
[1750916535338,3.45449236,144.24,144.16,5.79089236]
[1750916535539,39.09449236,144.24,144.16,5.79089236]
[1750916535839,6.9303,144.23,144.18,6.9322]
[1750916536339,46.02439236,144.24,144.19,6.9321]
[1750916536528,46.02439236,144.24,144.16,5.79089236]
[1750916536729,39.09449236,144.24,144.16,5.79089236]
[1750916536933,3.45449236,144.22,144.18,6.9323]
[1750916537136,3.45449236,144.22,144.19,21.56082013]
[1750916537340,3.45449236,144.22,144.16,5.79089236]
[1750916537536,3.45449236,144.22,144.19,6.9318]
[1750916537736,3.45449236,144.22,144.16,5.79089236]
[1750916538133,3.45449236,144.22,144.2,6.9312]
[1750916539242,39.09449236,144.24,144.2,6.9312]
[1750916539640,46.02429236,144.24,144.2,6.9312]
[1750916540543,46.02429236,144.24,144.19,6.932]
[1750916541641,39.09449236,144.24,144.16,5.79089236]
[1750916541943,35.64,144.24,144.18,3.45449236]
[1750916542144,35.64,144.24,144.21,6.9309]
[1750916542746,35.64,144.24,144.22,6.9306]
[1750916543544,35.64,144.24,144.21,6.931]
[1750916546342,35.64,144.24,144.18,3.45449236]
[1750916549148,35.62,144.27,144.23,6.9302]
[1750916549352,39.07449236,144.27,144.23,6.9302]
[1750916550157,35.62,144.27,144.22,3.45449236]
[1750916551552,35.62,144.27,144.24,6.9295]
[1750916552454,35.62,144.27,144.25,6.929]
[1750916552944,35.62,144.3,144.22,3.45449236]
[1750916553154,35.62,144.3,144.24,3.45449236]
[1750916553347,3.45449236,144.31,144.24,3.45449236]
[1750916553548,35.62,144.33,144.19,12.89358817]
[1750916553549,3.45739523,144.32,144.19,12.89358817]
[1750916553755,3.45739523,144.28,144.2,5.74149523]
[1750916553950,3.45739523,144.28,144.21,35.62]
[1750916554552,10.38529523,144.28,144.23,6.9298]
[1750916554753,3.45739523,144.28,144.23,6.9298]
[1750916555150,6.9279,144.28,144.23,6.9298]
[1750916555957,6.9279,144.28,144.24,6.9296]
[1750916556152,10.38489523,144.29,144.22,3.45739523]
[1750916556351,10.38489523,144.29,144.22,5.88599523]
[1750916556556,3.45739523,144.29,144.24,6.9294]
[1750916556857,10.38479523,144.29,144.25,35.62]
[1750916558662,10.38479523,144.29,144.25,42.5492]
[1750916559256,3.45739523,144.29,144.25,42.5492]
[1750916559659,10.38479523,144.29,144.25,42.5492]
[1750916560665,10.38479523,144.29,144.25,35.62]
[1750916561664,10.38479523,144.29,144.25,42.5492]
[1750916563870,2.4525,144.32,144.26,6.9287]
[1750916563871,10.38439523,144.3,144.26,6.9287]
[1750916564980,3.45739523,144.3,144.27,6.9282]
[1750916565784,3.45739523,144.3,144.26,6.9286]
[1750916566278,10.38429523,144.3,144.26,6.9286]
[1750916568281,3.45739523,144.3,144.27,6.9281]
[1750916569788,6.9267,144.31,144.27,6.9281]
[1750916574087,12.83589523,144.32,144.28,6.9278]
[1750916574485,10.38339523,144.32,144.28,6.9278]
[1750916574690,6.9265,144.31,144.27,6.9281]
[1750916575784,6.9265,144.31,144.27,42.6281]
[1750916576378,3.45739523,144.32,144.28,6.9277]
[1750916576584,10.38339523,144.32,144.28,6.9277]
[1750916576893,3.45739523,144.32,144.27,35.7]
[1750916577392,3.45739523,144.34,144.27,35.7]
[1750916577693,2.49245341,144.35,144.28,3.45739523]
[1750916577891,3.45739523,144.37,144.28,5.92039523]
[1750916578191,3.45739523,144.37,144.32,6.9255]
[1750916578192,10.38119523,144.37,144.32,6.9255]
[1750916578393,10.38119523,144.37,144.32,42.6255]
[1750916578896,10.38119523,144.37,144.33,6.9253]
[1750916579393,6.9238,144.37,144.33,6.9253]
[1750916580291,10.38039523,144.38,144.34,6.9249]
[1750916580497,3.45739523,144.38,144.32,35.7]
[1750916581295,3.45739523,144.38,144.32,39.15739523]
[1750916581595,3.45739523,144.4,144.32,41.55219523]
[1750916581993,10.37979523,144.4,144.32,41.55219523]
[1750916582597,6.9226,144.39,144.35,6.9242]
[1750916584198,10.37999523,144.39,144.35,6.9242]
[1750916585299,6.9234,144.38,144.32,38.0948]
[1750916585504,3.45739523,144.35,144.29,35.68]
[1750916585994,3.45739523,144.33,144.27,2.4385]
[1750916586198,3.45739523,144.31,144.27,38.1185]
[1750916586398,3.45739523,144.31,144.27,35.68]
[1750916587098,10.38379523,144.31,144.27,42.6079]
[1750916587498,3.45739523,144.31,144.28,6.9278]
[1750916587799,6.926,144.32,144.28,6.9278]
[1750916588508,10.38299523,144.33,144.28,6.9278]
[1750916589209,6.926,144.32,144.28,6.9278]
[1750916589509,6.926,144.32,144.27,42.6081]
[1750916590302,6.9264,144.31,144.27,42.6081]
[1750916590605,3.45739523,144.31,144.26,35.68]
[1750916591399,10.38409523,144.31,144.27,6.9283]
[1750916591601,3.45739523,144.31,144.26,35.68]
[1750916592704,3.45739523,144.32,144.26,35.68]
[1750916592905,6.9267,144.31,144.27,6.928]
[1750916595817,10.38339523,144.32,144.28,6.9277]
[1750916596312,3.45739523,144.32,144.26,35.68]
[1750916597404,3.45739523,144.32,144.29,6.9269]
[1750916597803,6.9254,144.33,144.29,6.9269]
[1750916598012,42.605,144.34,144.26,35.68]
[1750916598210,3.45739523,144.33,144.26,35.68]
[1750916598708,3.45739523,144.33,144.3,6.9267]
[1750916600413,3.45739523,144.33,144.29,6.9272]
[1750916600609,10.38289523,144.33,144.26,35.68]
[1750916601010,10.38289523,144.33,144.28,6.9275]
[1750916603314,10.38289523,144.33,144.29,6.9273]
[1750916604217,6.9259,144.32,144.28,6.9276]
[1750916604412,6.9259,144.32,144.26,35.68]
[1750916604610,6.9259,144.32,144.27,6.9279]
[1750916605707,3.45739523,144.31,144.26,42.6086]
[1750916605917,3.45739523,144.31,144.26,6.9286]
[1750916606115,2.50164694,144.34,144.25,2.4013]
[1750916606116,3.45739523,144.29,144.25,2.4013]
[1750916606315,10.38509523,144.29,144.25,6.9291]
[1750916606711,3.45739523,144.29,144.22,15.31738817]
[1750916606911,3.45739523,144.27,144.22,38.0438]
[1750916608509,10.38599523,144.27,144.23,6.9297]
[1750916610919,10.38599523,144.27,144.22,38.0438]
[1750916610920,3.45739523,144.27,144.24,6.9296]
[1750916613030,3.45739523,144.32,144.25,3.45739523]
[1750916613422,3.45739523,144.32,144.26,35.62]
[1750916613821,10.38339523,144.32,144.27,6.9279]
[1750916614021,10.38339523,144.32,144.26,35.62]
[1750916614916,3.45739523,144.32,144.26,35.62]